bitfinex/quotes_SOLUSD_20241028
["timestamp","ask_amount","ask_price","bid_price","bid_amount"]
[1730159133563,22.1159,178.58,178.52,16.96334754]
[1730159133564,16.96334754,178.57,178.52,16.96334754]
[1730159134058,22.1159,178.58,178.53,16.96334754]
[1730159134238,28.02456026,178.62,178.55,16.96334754]
[1730159134857,16.96334754,178.61,178.55,16.96334754]
[1730159135371,16.96334754,178.6,178.55,16.96334754]
[1730159137561,23.48734754,178.62,178.57,16.96334754]
[1730159138866,33.35384754,178.63,178.58,16.96334754]
[1730159139047,16.96334754,178.65,178.59,16.96334754]
[1730159140274,16.96334754,178.65,178.6,16.96334754]
[1730159140562,16.96334754,178.65,178.53,18.87145641]
[1730159140563,23.76736074,178.66,178.61,16.96334754]
[1730159140762,6.8040132,178.66,178.62,7.56140803]
[1730159140968,6.8040132,178.66,178.61,16.96334754]
[1730159141150,23.76736074,178.66,178.61,16.96334754]
[1730159141968,16.96334754,178.65,178.6,16.96334754]
[1730159142367,16.96334754,178.65,178.59,16.96334754]
[1730159144354,16.96334754,178.65,178.6,16.96334754]
[1730159146271,23.76736074,178.66,178.61,16.96334754]
[1730159146474,23.76736074,178.66,178.6,16.96334754]
[1730159147468,23.76736074,178.66,178.61,16.96334754]
[1730159148658,0.6098132,178.66,178.54,6.3685]
[1730159148854,17.57316074,178.66,178.6,16.96334754]
[1730159150366,16.96334754,178.65,178.6,16.96334754]
[1730159150678,16.96334754,178.65,178.59,16.96334754]
[1730159151263,16.96334754,178.64,178.59,16.96334754]
[1730159151477,16.96334754,178.64,178.59,36.96334754]
[1730159152174,16.96334754,178.65,178.6,16.96334754]
[1730159153369,17.57316074,178.66,178.6,16.96334754]
[1730159154455,10.84171119,178.65,178.6,10.84171119]
[1730159154981,10.84171119,178.64,178.59,10.84171119]
[1730159155168,0.6098132,178.66,178.56,20.0]
[1730159155169,10.84171119,178.63,178.56,20.0]
[1730159155481,10.84171119,178.61,178.55,10.84171119]
[1730159156178,10.84171119,178.6,178.55,10.84171119]
[1730159158479,10.84171119,178.6,178.54,34.61859519]
[1730159158781,10.84171119,178.59,178.53,10.84171119]
[1730159159156,10.84171119,178.59,178.54,10.84171119]
[1730159160162,6.0847,178.65,178.58,10.84171119]
[1730159160365,11.45152439,178.66,178.61,10.84171119]
[1730159160558,10.84171119,178.65,178.6,10.84171119]
[1730159160756,0.6098132,178.66,178.61,10.84171119]
[1730159160979,0.6098132,178.66,178.62,10.84171119]
[1730159161269,0.6098132,178.66,178.64,10.84171119]
[1730159161652,0.6098132,178.66,178.63,10.84171119]
[1730159161880,0.6098132,178.66,178.62,10.84171119]
[1730159162583,0.6098132,178.66,178.63,7.01034254]
[1730159162785,0.6098132,178.66,178.62,16.93694192]
[1730159163092,0.6098132,178.66,178.63,16.93694192]
[1730159163380,0.6098132,178.66,178.64,16.93694192]
[1730159163584,0.6098132,178.66,178.65,16.93694192]
[1730159163885,0.6098132,178.66,178.63,23.776884]
[1730159164466,0.6098132,178.66,178.64,16.93694192]
[1730159165602,0.6098132,178.66,178.65,16.93694192]
[1730159165783,0.6098132,178.66,178.64,16.93694192]
[1730159166173,0.6098132,178.66,178.65,16.93694192]
[1730159166370,0.6098132,178.66,178.65,40.71382592]
[1730159167072,0.6098132,178.66,178.6,3.14864575]
[1730159167073,0.6098132,178.66,178.63,16.93694192]
[1730159168371,0.6098132,178.66,178.61,23.776884]
[1730159168372,0.6098132,178.66,178.64,16.93694192]
[1730159171198,0.6098132,178.66,178.63,16.93694192]
[1730159171490,16.93694192,178.64,178.56,15.946]
[1730159171666,16.93694192,178.64,178.58,16.93694192]
[1730159172470,16.93694192,178.61,178.55,16.93694192]
[1730159172679,16.93694192,178.61,178.56,16.93694192]
[1730159172866,16.93694192,178.62,178.56,16.93694192]
[1730159174091,16.93694192,178.63,178.58,16.93694192]
[1730159174293,12.7541132,178.66,178.58,16.93694192]
[1730159174294,16.93694192,178.64,178.58,16.93694192]
[1730159174506,16.93694192,178.63,178.58,16.93694192]
[1730159174699,16.93694192,178.62,178.57,16.93694192]
[1730159174880,12.7541132,178.66,178.55,16.93694192]
[1730159174881,16.93694192,178.61,178.55,16.93694192]
[1730159175073,16.93694192,178.59,178.54,16.93694192]
[1730159175395,16.93694192,178.61,178.55,16.93694192]
[1730159176799,16.93694192,178.6,178.55,16.93694192]
[1730159177478,16.93694192,178.6,178.56,20.0]
[1730159178395,16.93694192,178.61,178.56,20.0]
[1730159178585,16.93694192,178.61,178.56,16.93694192]
[1730159180704,7.1568132,178.66,178.57,16.93694192]
[1730159180894,16.93694192,178.64,178.59,16.93694192]
[1730159181200,16.93694192,178.65,178.6,16.93694192]
[1730159181500,16.93694192,178.65,178.59,16.93694192]
[1730159183007,7.1568132,178.66,178.57,20.0]
[1730159183008,16.93694192,178.62,178.57,20.0]
[1730159183179,16.93694192,178.63,178.57,36.93694192]
[1730159184501,16.93694192,178.62,178.57,36.93694192]
[1730159185579,16.93694192,178.61,178.57,20.0]
[1730159185783,16.93694192,178.59,178.56,20.0]
[1730159186001,16.93694192,178.58,178.53,16.93694192]
[1730159187375,16.93694192,178.59,178.54,20.0]
[1730159188592,32.54274192,178.62,178.57,16.93694192]
[1730159188791,16.93694192,178.64,178.58,16.93694192]
[1730159189002,16.93694192,178.64,178.56,20.0]
[1730159189003,16.93694192,178.64,178.59,16.93694192]
[1730159189374,16.93694192,178.65,178.59,16.93694192]
[1730159189581,16.93694192,178.65,178.6,36.93694192]
[1730159189903,16.93694192,178.65,178.6,20.0]
[1730159190106,16.93694192,178.63,178.6,20.0]
[1730159190281,16.93694192,178.63,178.59,20.0]
[1730159191810,16.93694192,178.63,178.58,20.0]
[1730159194384,16.93694192,178.6,178.54,16.93694192]
[1730159194585,16.93694192,178.59,178.53,16.93694192]
[1730159195308,16.93694192,178.58,178.53,16.93694192]
[1730159195512,16.93694192,178.57,178.52,16.93694192]
[1730159196613,16.93694192,178.58,178.52,16.93694192]
[1730159196792,16.93694192,178.59,178.53,16.93694192]
[1730159196986,16.93694192,178.59,178.5,23.776884]
[1730159196987,16.93694192,178.59,178.54,16.93694192]
[1730159200616,6.0955,178.6,178.56,16.93694192]
[1730159200917,16.93694192,178.62,178.56,16.93694192]
[1730159201604,16.93694192,178.63,178.57,36.93694192]
[1730159201802,38.73444192,178.64,178.58,16.93694192]
[1730159202625,21.7975,178.64,178.59,16.93694192]
[1730159202991,21.7975,178.64,178.6,16.93694192]
[1730159205689,38.73444192,178.64,178.58,16.93694192]
[1730159205889,38.73444192,178.64,178.59,20.0]
[1730159205890,16.93694192,178.63,178.59,20.0]
[1730159206523,16.93694192,178.63,178.58,20.0]
[1730159208344,16.93694192,178.62,178.49,15.6255]
[1730159208511,16.93694192,178.59,178.49,15.6255]
[1730159208705,16.93694192,178.59,178.53,16.93694192]
[1730159208905,16.93694192,178.59,178.54,16.93694192]
[1730159209828,16.93694192,178.59,178.55,20.0]
[1730159213169,16.93694192,178.6,178.55,36.93694192]
[1730159215335,16.93694192,178.6,178.54,16.93694192]
[1730159215538,16.93694192,178.6,178.55,20.0]
[1730159216341,16.93694192,178.59,178.55,20.0]
[1730159217257,16.93694192,178.61,178.55,16.93694192]
[1730159217930,16.93694192,178.6,178.54,16.93694192]
[1730159218127,16.93694192,178.6,178.55,20.0]
[1730159218341,16.93694192,178.56,178.5,16.93694192]
[1730159218527,10.85474908,178.56,178.5,10.85474908]
[1730159220143,10.85474908,178.56,178.51,20.0]
[1730159220464,6.1788,178.58,178.5,16.9616489]
[1730159220465,16.9616489,178.55,178.5,16.9616489]
[1730159220749,16.9616489,178.55,178.51,20.0]
[1730159221433,15.752,178.57,178.51,20.0]
[1730159221434,16.9616489,178.56,178.51,20.0]
[1730159222255,32.7136489,178.57,178.52,16.9616489]
[1730159222660,32.7136489,178.57,178.51,16.9616489]
[1730159223036,32.7136489,178.57,178.52,20.0]
[1730159223445,16.9616489,178.56,178.51,16.9616489]
[1730159224335,16.9616489,178.54,178.5,20.0]
[1730159225259,21.352,178.57,178.47,16.9616489]
[1730159225260,16.9616489,178.52,178.47,16.9616489]
[1730159225562,16.9616489,178.51,178.45,16.9616489]
[1730159226067,16.9616489,178.51,178.46,16.9616489]
[1730159226656,16.9616489,178.51,178.45,16.9616489]
[1730159228353,16.9616489,178.51,178.46,20.0]
[1730159228854,16.9616489,178.56,178.44,16.9616489]
[1730159228855,16.9616489,178.5,178.44,16.9616489]
[1730159229047,16.9616489,178.5,178.45,20.0]
[1730159229560,16.9616489,178.49,178.45,20.0]
[1730159229857,16.9616489,178.48,178.42,16.9616489]
[1730159230059,16.9616489,178.49,178.44,16.9616489]
[1730159230359,16.9616489,178.49,178.43,16.9616489]
[1730159232745,6.2406,178.51,178.47,16.9616489]
[1730159232944,32.4751489,178.54,178.49,16.9616489]
[1730159233367,15.5135,178.54,178.5,16.9616489]
[1730159236858,6.5511,178.56,178.51,16.9616489]
[1730159237165,16.9616489,178.55,178.5,16.9616489]
[1730159237760,6.5511,178.56,178.51,16.9616489]
[1730159238347,6.5511,178.56,178.47,16.9616489]
[1730159238348,6.5511,178.56,178.53,16.9616489]
[1730159238767,6.5511,178.56,178.52,16.9616489]
[1730159240366,6.5511,178.56,178.53,16.9616489]
[1730159240683,6.5511,178.56,178.53,10.85205916]
[1730159240977,16.1503,178.58,178.54,10.85205916]
[1730159241147,27.00235916,178.58,178.48,20.0]
[1730159241464,27.00235916,178.58,178.53,10.85205916]
[1730159243161,10.85205916,178.57,178.52,10.85205916]
[1730159243544,10.85205916,178.55,178.51,20.0]
[1730159244274,10.85205916,178.56,178.51,10.85205916]
[1730159244479,10.85205916,178.57,178.51,10.85205916]
[1730159244681,32.60205916,178.58,178.52,10.85205916]
[1730159244872,6.4889,178.61,178.57,10.85205916]
[1730159245074,15.3702,178.63,178.6,10.85205916]
[1730159245909,15.3702,178.63,178.59,10.85205916]
[1730159246183,0.6098132,178.66,178.62,10.85205916]
[1730159246387,0.6098132,178.66,178.63,10.85205916]
[1730159246558,0.6098132,178.66,178.62,20.0]
[1730159246756,6.2071132,178.66,178.59,16.93724899]
[1730159246955,16.93724899,178.63,178.56,15.3469]
[1730159247253,16.93724899,178.58,178.53,16.93724899]
[1730159247483,16.93724899,178.56,178.5,16.93724899]
[1730159248675,16.93724899,178.56,178.51,20.0]
[1730159249183,16.93724899,178.56,178.51,16.93724899]
[1730159250562,16.93724899,178.53,178.51,20.0]
[1730159250885,5.5994,178.59,178.51,20.0]
[1730159250886,16.93724899,178.54,178.51,20.0]
[1730159251171,16.93724899,178.55,178.49,36.93724899]
[1730159251753,16.93724899,178.54,178.48,36.93724899]
[1730159251950,16.93724899,178.51,178.46,20.0]
[1730159252152,16.93724899,178.52,178.46,36.93724899]
[1730159252373,16.93724899,178.53,178.48,36.93724899]
[1730159252577,16.93724899,178.54,178.48,36.93724899]
[1730159252777,16.93724899,178.52,178.48,20.0]
[1730159254476,16.93724899,178.53,178.49,20.0]
[1730159255392,16.93724899,178.54,178.49,20.0]
[1730159255569,16.93724899,178.54,178.49,16.93724899]
[1730159255766,20.8811,178.6,178.51,16.93724899]
[1730159255975,16.93724899,178.58,178.53,16.93724899]
[1730159256167,23.09754899,178.61,178.55,16.93724899]
[1730159256361,23.09754899,178.61,178.56,16.93724899]
[1730159256565,16.93724899,178.57,178.51,16.93724899]
[1730159256776,16.93724899,178.56,178.52,20.0]
[1730159257280,16.93724899,178.58,178.53,16.93724899]
[1730159257883,16.93724899,178.6,178.55,16.93724899]
[1730159258383,16.93724899,178.6,178.54,16.93724899]
[1730159258587,16.93724899,178.57,178.55,20.0]
[1730159258969,16.93724899,178.57,178.53,20.0]
[1730159261584,16.93724899,178.58,178.53,16.93724899]
[1730159261769,16.93724899,178.59,178.54,16.93724899]
[1730159264787,16.93724899,178.58,178.53,16.93724899]
[1730159265492,16.93724899,178.57,178.53,20.0]
[1730159265878,16.93724899,178.56,178.51,20.0]
[1730159266196,16.93724899,178.58,178.53,36.93724899]
[1730159266665,10.85140281,178.58,178.53,30.85140281]
[1730159267510,10.85140281,178.55,178.51,20.0]
[1730159269083,10.85140281,178.54,178.5,20.0]
[1730159269280,10.85140281,178.53,178.49,20.0]
[1730159269587,15.3192,178.57,178.49,20.0]
[1730159269788,10.85140281,178.54,178.49,20.0]
[1730159270210,10.85140281,178.54,178.49,10.85140281]
[1730159270600,26.17060281,178.57,178.52,30.85140281]
[1730159270784,10.85140281,178.58,178.52,30.85140281]
[1730159271806,10.85140281,178.54,178.5,20.0]
[1730159272014,10.85140281,178.53,178.5,20.0]
[1730159272497,16.9643417,178.53,178.49,20.0]
[1730159274111,16.9643417,178.54,178.49,36.9643417]
[1730159274489,16.9643417,178.57,178.51,16.9643417]
[1730159274809,16.9643417,178.56,178.5,16.9643417]
[1730159275512,16.9643417,178.55,178.5,16.9643417]
[1730159276714,16.9643417,178.56,178.5,16.9643417]
[1730159277013,16.9643417,178.57,178.52,16.9643417]
[1730159277201,16.9643417,178.58,178.53,16.9643417]
[1730159278486,16.9643417,178.6,178.54,16.9643417]
[1730159279704,16.9643417,178.56,178.51,16.9643417]
[1730159279910,16.9643417,178.58,178.52,16.9643417]
[1730159280112,16.9643417,178.59,178.53,16.9643417]
[1730159280411,16.9643417,178.6,178.54,16.9643417]
[1730159280724,16.9643417,178.6,178.55,16.9643417]
[1730159283516,16.9643417,178.59,178.54,16.9643417]
[1730159285107,22.5898,178.61,178.57,16.9643417]
[1730159285310,6.6254,178.65,178.58,16.9643417]
[1730159285517,6.6254,178.65,178.6,36.9643417]
[1730159285713,6.6254,178.65,178.61,16.9643417]
[1730159287324,6.6254,178.65,178.6,16.9643417]
[1730159287621,23.5897417,178.65,178.6,16.9643417]
[1730159288025,16.9643417,178.64,178.59,16.9643417]
[1730159288339,16.9643417,178.64,178.6,20.0]
[1730159288511,16.9643417,178.64,178.59,16.9643417]
[1730159291034,16.9643417,178.63,178.58,16.9643417]
[1730159291241,16.9643417,178.63,178.59,20.0]
[1730159292515,16.9643417,178.64,178.59,20.0]
[1730159294513,10.84468487,178.64,178.59,20.0]
[1730159294834,16.1077132,178.66,178.62,10.84468487]
[1730159295012,16.1077132,178.66,178.56,43.37873948]
[1730159295013,0.6098132,178.66,178.63,10.84468487]
[1730159295208,0.6098132,178.66,178.57,20.0]
[1730159295209,0.6098132,178.66,178.64,10.84468487]
[1730159295436,0.6098132,178.66,178.65,10.84468487]
[1730159295644,0.6098132,178.66,178.6,43.776884]
[1730159295853,0.6098132,178.66,178.63,10.84468487]
[1730159296154,0.6098132,178.66,178.64,20.0]
[1730159298229,0.6098132,178.66,178.65,10.84468487]
[1730159298426,0.6098132,178.66,178.65,16.93253341]
[1730159298838,0.6098132,178.66,178.61,20.0]
[1730159298839,0.6098132,178.66,178.64,16.93253341]
[1730159301029,0.6098132,178.66,178.65,20.0]
[1730159301645,17.54234661,178.66,178.6,36.93253341]
[1730159302153,16.93253341,178.64,178.59,16.93253341]
[1730159303263,16.93253341,178.64,178.6,20.0]
[1730159303748,16.93253341,178.65,178.6,20.0]
[1730159305450,16.93253341,178.64,178.6,20.0]
[1730159309259,16.93253341,178.63,178.6,20.0]
[1730159309634,16.93253341,178.64,178.6,20.0]
[1730159311458,16.93253341,178.65,178.6,20.0]
[1730159313452,16.93253341,178.65,178.61,20.0]
[1730159313655,0.6098132,178.66,178.63,16.93253341]
[1730159314635,0.6098132,178.66,178.62,16.93253341]
[1730159314835,16.93253341,178.65,178.59,16.93253341]
[1730159315035,16.93253341,178.65,178.6,20.0]
[1730159315432,0.6098132,178.66,178.6,20.0]
[1730159315433,16.93253341,178.63,178.6,20.0]
[1730159315637,16.93253341,178.64,178.59,20.0]
[1730159316053,16.93253341,178.63,178.55,15.6882]
[1730159316364,16.93253341,178.56,178.51,15.2768]
[1730159316543,16.93253341,178.58,178.52,16.93253341]
[1730159316741,16.93253341,178.58,178.53,16.93253341]
[1730159317538,16.93253341,178.57,178.52,36.93253341]
[1730159318052,16.93253341,178.57,178.52,16.93253341]
[1730159318359,16.93253341,178.56,178.5,16.93253341]
[1730159318562,16.93253341,178.54,178.49,16.93253341]
[1730159319070,5.6985,178.62,178.44,0.97330035]
[1730159319071,16.93253341,178.5,178.44,0.97330035]
[1730159319259,16.93253341,178.5,178.41,15.5887]
[1730159319448,15.0261,178.53,178.45,16.93253341]
[1730159319449,16.93253341,178.51,178.45,16.93253341]
[1730159319643,16.93253341,178.52,178.46,16.93253341]
[1730159320162,16.93253341,178.51,178.45,16.93253341]
[1730159320362,16.93253341,178.51,178.46,20.0]
[1730159321058,16.93253341,178.51,178.44,20.0]
[1730159321255,16.93253341,178.51,178.46,20.0]
[1730159321440,16.93253341,178.48,178.43,22.76267755]
[1730159321641,16.93253341,178.46,178.36,21.9572]
[1730159321854,16.93253341,178.46,178.41,16.93253341]
[1730159322366,16.93253341,178.47,178.41,16.93253341]
[1730159323168,16.93253341,178.47,178.42,20.0]
[1730159324044,16.93253341,178.47,178.42,16.93253341]
[1730159328855,16.93253341,178.43,178.39,20.0]
[1730159330055,16.93253341,178.44,178.39,36.93253341]
[1730159330469,16.93253341,178.45,178.39,36.93253341]
[1730159331371,16.93253341,178.45,178.4,16.93253341]
[1730159331675,16.93253341,178.44,178.39,16.93253341]
[1730159336474,10.86812295,178.45,178.39,30.86812295]
[1730159337377,10.86812295,178.44,178.39,30.86812295]
[1730159337550,10.86812295,178.44,178.39,20.0]
[1730159338675,10.86812295,178.45,178.39,30.86812295]
[1730159339346,10.86812295,178.45,178.4,10.86812295]
[1730159342560,5.6025,178.49,178.39,20.0]
[1730159342561,5.602,178.51,178.43,10.86812295]
[1730159342860,10.86812295,178.48,178.43,10.86812295]
[1730159343283,10.86812295,178.48,178.42,10.86812295]
[1730159344682,10.86812295,178.46,178.41,10.86812295]
[1730159344974,10.86812295,178.46,178.38,23.776884]
[1730159344975,10.86812295,178.43,178.38,20.0]
[1730159345174,10.86812295,178.42,178.37,10.86812295]
[1730159345879,10.86812295,178.41,178.36,10.86812295]
[1730159346381,10.86812295,178.43,178.37,10.86812295]
[1730159346568,6.104,178.45,178.41,10.86812295]
[1730159346774,16.97212295,178.45,178.39,10.86812295]
[1730159349987,10.86812295,178.43,178.38,10.86812295]
[1730159351285,10.86812295,178.43,178.32,18.61567896]
[1730159351455,10.86812295,178.41,178.37,20.0]
[1730159351660,10.86812295,178.42,178.37,20.0]
[1730159351882,10.86812295,178.43,178.37,10.86812295]
[1730159352980,10.86812295,178.43,178.38,10.86812295]
[1730159353671,10.86812295,178.43,178.37,10.86812295]
[1730159354059,10.86812295,178.43,178.38,10.86812295]
[1730159354690,10.86812295,178.43,178.37,10.86812295]
[1730159354893,10.86812295,178.42,178.36,10.86812295]
[1730159355977,10.86812295,178.42,178.33,23.776884]
[1730159356290,10.86812295,178.42,178.37,10.86812295]
[1730159357084,10.86812295,178.4,178.35,10.86812295]
[1730159357584,10.86812295,178.41,178.35,10.86812295]
[1730159358681,10.86812295,178.39,178.33,20.0]
[1730159358869,10.86812295,178.38,178.32,10.86812295]
[1730159359064,15.3401,178.4,178.33,10.86812295]
[1730159359270,15.3401,178.4,178.35,10.86812295]
[1730159360173,15.3401,178.4,178.36,10.86812295]
[1730159361080,10.86812295,178.42,178.36,10.86812295]
[1730159361266,10.86812295,178.42,178.37,10.86812295]
[1730159362588,15.3401,178.43,178.37,10.86812295]
[1730159362888,10.86812295,178.42,178.37,10.86812295]
[1730159363097,15.3401,178.43,178.39,10.86812295]
[1730159363388,26.20822295,178.43,178.38,10.86812295]
[1730159367369,10.86812295,178.42,178.36,10.86812295]
[1730159368593,10.86812295,178.42,178.37,10.86812295]
[1730159369380,26.20822295,178.43,178.38,10.86812295]
[1730159370995,15.3401,178.43,178.38,10.86812295]
[1730159371197,6.104,178.45,178.41,10.86812295]
[1730159371399,6.104,178.45,178.4,10.86812295]
[1730159372295,16.97212295,178.45,178.4,10.86812295]
[1730159373397,10.86812295,178.43,178.38,10.86812295]
[1730159373695,10.86812295,178.43,178.37,10.86812295]
[1730159374892,16.97212295,178.45,178.39,10.86812295]
[1730159376381,10.86812295,178.44,178.38,10.86812295]
[1730159376786,16.4675,178.47,178.41,10.86812295]
[1730159376984,16.4675,178.47,178.43,10.86812295]
[1730159377503,16.4675,178.47,178.42,10.86812295]
[1730159378004,10.86812295,178.46,178.41,10.86812295]
[1730159378385,10.86812295,178.46,178.4,10.86812295]
[1730159379005,27.33562295,178.47,178.41,10.86812295]
[1730159379196,27.33562295,178.47,178.42,10.86812295]
[1730159380200,10.86812295,178.46,178.41,10.86812295]
[1730159382274,10.86812295,178.46,178.4,10.86812295]
[1730159382500,10.86812295,178.44,178.38,10.86812295]
[1730159383027,10.86812295,178.43,178.38,10.86812295]
[1730159384680,10.86812295,178.44,178.38,10.86812295]
[1730159385486,5.6036,178.46,178.39,10.86812295]
[1730159385685,10.86812295,178.44,178.39,10.86812295]
[1730159387206,27.33562295,178.47,178.42,10.86812295]
[1730159387388,16.4675,178.47,178.43,10.86812295]
[1730159387596,27.33562295,178.47,178.42,10.86812295]
[1730159394634,10.86812295,178.46,178.41,10.86812295]
[1730159397426,10.86812295,178.44,178.39,10.86812295]
[1730159398013,10.86812295,178.45,178.39,10.86812295]
[1730159401029,10.86812295,178.46,178.41,10.86812295]
[1730159401530,10.86812295,178.45,178.35,20.0]
[1730159401707,10.86812295,178.44,178.37,20.0]
[1730159401909,10.86812295,178.44,178.39,10.86812295]
[1730159402309,10.86812295,178.44,178.37,20.0]
[1730159402310,10.86812295,178.44,178.36,23.776884]
[1730159402515,10.86812295,178.44,178.39,10.86812295]
[1730159403433,22.0706,178.47,178.39,10.86812295]
[1730159403621,10.86812295,178.45,178.39,10.86812295]
[1730159406530,16.4675,178.47,178.42,10.86812295]
[1730159407238,27.33562295,178.47,178.42,10.86812295]
[1730159407741,16.4675,178.47,178.42,10.86812295]
[1730159408119,27.33562295,178.47,178.42,10.86812295]
[1730159409829,16.4675,178.47,178.38,43.4724918]
[1730159410030,16.4675,178.47,178.43,10.86812295]
[1730159410935,6.4826,178.5,178.46,10.86812295]
[1730159411136,17.35072295,178.5,178.45,10.86812295]
[1730159411735,10.86812295,178.48,178.43,10.86812295]
[1730159412146,10.86812295,178.47,178.42,10.86812295]
[1730159412317,10.86812295,178.47,178.41,10.86812295]
[1730159412826,10.86812295,178.48,178.42,10.86812295]
[1730159413030,16.47062295,178.49,178.43,10.86812295]
[1730159414227,16.47062295,178.49,178.44,10.86812295]
[1730159414838,5.6025,178.49,178.44,10.86812295]
[1730159415142,16.47062295,178.49,178.44,10.86812295]
[1730159415439,16.47062295,178.49,178.35,10.86812295]
[1730159415440,33.32832295,178.45,178.35,10.86812295]
[1730159415629,10.86812295,178.41,178.35,10.86812295]
[1730159415831,10.86812295,178.42,178.36,10.86812295]
[1730159418051,10.86812295,178.42,178.37,10.86812295]
[1730159419034,28.0642,178.45,178.37,10.86812295]
[1730159419228,10.86812295,178.42,178.37,10.86812295]
[1730159419444,10.86812295,178.42,178.34,20.0]
[1730159419642,10.86812295,178.42,178.36,10.86812295]
[1730159419845,28.0642,178.45,178.36,10.86812295]
[1730159420158,10.86812295,178.42,178.37,10.86812295]
[1730159420320,10.86812295,178.42,178.34,20.0]
[1730159420523,10.86812295,178.42,178.36,10.86812295]
[1730159421451,10.86812295,178.38,178.29,6.82069971]
[1730159421636,10.86812295,178.36,178.31,10.86812295]
[1730159424557,10.86812295,178.37,178.32,10.86812295]
[1730159424733,10.86812295,178.34,178.29,20.0]
[1730159424940,15.4905,178.38,178.28,10.86812295]
[1730159424941,10.86812295,178.33,178.28,10.86812295]
[1730159425343,10.86812295,178.31,178.24,17.32611834]
[1730159425652,10.86812295,178.31,178.25,10.86812295]
[1730159426056,10.86812295,178.31,178.26,10.86812295]
[1730159426242,10.86812295,178.31,178.25,10.86812295]
[1730159426440,10.86812295,178.31,178.24,17.32611834]
[1730159426641,10.86812295,178.31,178.25,10.86812295]
[1730159426848,10.86812295,178.3,178.2,16.2128]
[1730159427153,10.86812295,178.3,178.21,0.97475445]
[1730159427452,10.86812295,178.28,178.23,10.86812295]
[1730159427660,10.86812295,178.28,178.22,10.86812295]
[1730159427833,10.86812295,178.26,178.19,0.97484779]
[1730159428037,10.86812295,178.26,178.2,10.86812295]
[1730159428935,10.86812295,178.26,178.21,10.86812295]
[1730159429137,10.86812295,178.28,178.23,10.86812295]
[1730159430233,10.86812295,178.29,178.24,10.86812295]
[1730159435869,10.86812295,178.28,178.23,10.86812295]
[1730159436642,10.86812295,178.29,178.23,10.86812295]
[1730159437255,10.86812295,178.27,178.19,20.0]
[1730159437564,10.86812295,178.26,178.21,10.86812295]
[1730159438235,10.86812295,178.26,178.18,0.287845]
[1730159438236,10.86812295,178.24,178.18,0.287845]
[1730159438436,10.86812295,178.24,178.19,10.86812295]
[1730159439254,15.569,178.25,178.18,0.287845]
[1730159439255,10.86812295,178.23,178.18,11.15596795]
[1730159440046,10.86812295,178.24,178.18,11.15596795]
[1730159440353,15.569,178.25,178.22,10.86812295]
[1730159441661,10.86812295,178.24,178.18,0.287845]
[1730159442161,10.86812295,178.23,178.18,11.15596795]
[1730159442348,16.47862295,178.24,178.18,11.15596795]
[1730159442546,26.43712295,178.25,178.2,10.86812295]
[1730159442748,15.569,178.25,178.21,10.86812295]
[1730159444967,15.569,178.25,178.18,0.287845]
[1730159444968,15.569,178.25,178.2,10.86812295]
[1730159445175,6.563,178.26,178.24,10.86812295]
[1730159445361,15.0002,178.3,178.25,10.86812295]
[1730159445670,15.0002,178.3,178.27,10.86812295]
[1730159446177,25.86832295,178.3,178.18,16.157845]
[1730159446350,10.86812295,178.29,178.23,10.86812295]
[1730159446546,10.86812295,178.27,178.22,10.86812295]
[1730159446853,10.86812295,178.27,178.21,10.86812295]
[1730159447049,5.6088,178.29,178.18,16.157845]
[1730159447050,15.0002,178.3,178.23,10.86812295]
[1730159447260,15.0002,178.3,178.26,10.86812295]
[1730159447474,15.0002,178.3,178.27,10.86812295]
[1730159448867,6.0201,178.31,178.28,10.86812295]
[1730159449059,6.0201,178.31,178.29,10.86812295]
[1730159449268,6.0201,178.31,178.3,10.86812295]
[1730159449468,5.6074,178.34,178.3,10.86812295]
[1730159449676,10.86812295,178.33,178.28,10.86812295]
[1730159451570,10.86812295,178.31,178.25,10.86812295]
[1730159451759,16.47582295,178.33,178.27,10.86812295]
[1730159453556,10.86812295,178.32,178.27,10.86812295]
[1730159454050,10.86812295,178.32,178.26,10.86812295]
[1730159454051,16.47602295,178.32,178.26,10.86812295]
[1730159454469,10.86812295,178.31,178.26,10.86812295]
[1730159455880,16.47642295,178.31,178.26,10.86812295]
[1730159456380,5.6083,178.31,178.27,10.86812295]
[1730159457375,10.86812295,178.33,178.28,10.86812295]
[1730159457970,16.47582295,178.33,178.28,10.86812295]
[1730159458179,5.6077,178.33,178.29,10.86812295]
[1730159458879,16.47582295,178.33,178.28,10.86812295]
[1730159459079,10.86812295,178.32,178.27,10.86812295]
[1730159459380,10.86812295,178.32,178.21,15.5016]
[1730159459381,16.47622295,178.32,178.26,10.86812295]
[1730159460561,5.6081,178.32,178.28,10.86812295]
[1730159461158,16.47622295,178.32,178.27,10.86812295]